[Event "Kuwait Championship Stage-I 2024"]
[Site "Qadsiya"]
[Date "2024.01.31"]
[Round "8.5"]
[White "Alabdaljader, Mohammed"]
[Black "Alenezi, Hamad"]
[Result "1-0"]
[ECO "B12"]
[WhiteElo "1353"]
[BlackElo "1419"]
[Annotator "NA RC"]
[PlyCount "209"]
[EventDate "2024.01.22"]
[EventType "swiss"]
[EventCountry "KUW"]
[SourceTitle "playchess.com"]
[Source "ChessBase"]
[SourceQuality "1"]
[TimeControl "5400+30"]

1. e4 {[%emt 0:00:33]} c6 {[%emt 0:01:52]} 2. d4 {[%emt 0:00:06]} d5 {[%emt 0:00:06]} 3. f3 {[%emt 0:00:02]} e6 {[%emt 0:00:17]} 4. Nc3 {[%emt 0:00:16]} Nf6 {[%emt 0:00:23]} 5. Bf4 {[%emt 0:00:13]} Bb4 {[%emt 0:04:11]} 6. Qd3 {[%emt 0:00:07]} Nbd7 {[%emt 0:07:17]} 7. e5 {[%emt 0:00:27]} Nh5 {[%emt 0:02:33]} 8. Be3 {[%emt 0:00:08]} g6 {[%emt 0:00:08]} 9. Nge2 {[%emt 0:01:31]} Ng7 {[%emt 0:02:09]} 10. g4 {[%emt 0:00:53]} h5 {[%emt 0:01:56]} 11. O-O-O {[%emt 0:01:02]} Nb6 {[%emt 0:02:02]} 12. Kb1 {[%emt 0:04:34]} Bd7 {[%emt 0:03:51]} 13. Nf4 {[%emt 0:01:47]} Qe7 {[%emt 0:08:48]} 14. a3 {[%emt 0:00:11]} Bxc3 {[%emt 0:02:04]} 15. Qxc3 {[%emt 0:00:46]} O-O-O {[%emt 0:02:08]} 16. h4 {[%emt 0:02:03]} hxg4 {[%emt 0:04:33]} 17. Ng2 {[%emt 0:05:13]} gxf3 {[%emt 0:00:30]} 18. Bg5 {[%emt 0:00:30]} fxg2 {[%emt 0:00:30]} 19. Bxg2 {[%emt 0:00:30]} Qf8 {[%emt 0:00:30]} 20. a4 {[%emt 0:00:30]} Re8 {[%emt 0:00:30]} 21. a5 {[%emt 0:00:30]} Nc4 {[%emt 0:00:30]} 22. Rh3 {[%emt 0:00:30]} Nf5 {[%emt 0:00:30]} 23. Bf1 {[%emt 0:00:30]} Kb8 {[%emt 0:00:30]} 24. Bxc4 {[%emt 0:00:30]} dxc4 {[%emt 0:00:30]} 25. Qxc4 {[%emt 0:00:30]} Ne7 {[%emt 0:00:30]} 26. Rb3 {[%emt 0:00:30]} Ka8 {[%emt 0:00:30]} 27. Rdd3 {[%emt 0:00:30]} Nd5 {[%emt 0:00:30]} 28. Qa4 {[%emt 0:00:30]} Rb8 {[%emt 0:00:30]} 29. c4 {[%emt 0:00:30]} Nc7 {[%emt 0:00:30]} 30. d5 {[%emt 0:00:30]} exd5 {[%emt 0:00:30]} 31. cxd5 {[%emt 0:00:30]} Nxd5 {[%emt 0:00:30]} 32. Rxd5 {[%emt 0:00:30]} Bf5+ {[%emt 0:00:30]} 33. Rdd3 {[%emt 0:00:30]} Bxd3+ {[%emt 0:00:30]} 34. Rxd3 {[%emt 0:00:30]} Qc5 {[%emt 0:00:30]} 35. a6 {[%emt 0:00:30]} bxa6 {[%emt 0:00:30]} 36. Be3 {[%emt 0:00:30]} Qb5 {[%emt 0:00:30]} 37. Qd4 {[%emt 0:00:30]} Qb7 {[%emt 0:00:30]} 38. Rb3 {[%emt 0:00:30]} Qc7 {[%emt 0:00:30]} 39. Rc3 {[%emt 0:00:30]} Rhd8 {[%emt 0:00:30]} 40. Qe4 {[%emt 0:00:30]} Qb7 {[%emt 0:00:30]} 41. Qg2 {[%emt 0:00:30]} Rd1+ {[%emt 0:00:30]} 42. Ka2 {[%emt 0:00:30]} Rd5 {[%emt 0:00:30]} 43. Qc2 {[%emt 0:00:30]} Rb5 {[%emt 0:00:30]} 44. b3 {[%emt 0:00:30]} Rxe5 {[%emt 0:00:30]} 45. Bf4 {[%emt 0:00:30]} Ra5+ {[%emt 0:00:30]} 46. Kb2 {[%emt 0:00:30]} Rc8 {[%emt 0:00:30]} 47. Bd6 {[%emt 0:00:30]} Rd5 {[%emt 0:00:30]} 48. Bc5 {[%emt 0:00:30]} Rcd8 {[%emt 0:00:30]} 49. Be3 {[%emt 0:00:30]} Qd7 50. Rxc6 {[%emt 1:09:44]} Rd2 {[%emt 0:54:32]} 51. Bxd2 {[%emt 0:01:40]} Qxd2 {[%emt 0:00:11]} 52. Rc8+ {[%emt 0:00:28]} Kb7 {[%emt 0:00:10]} 53. Rxd8 {[%emt 0:01:19]} Qxd8 {[%emt 0:00:08]} 54. Qe4+ {[%emt 0:00:23]} Kc7 {[%emt 0:00:26]} 55. Qf4+ {[%emt 0:00:18]} Kc6 {[%emt 0:00:56]} 56. Qc4+ {[%emt 0:00:45]} Kb6 {[%emt 0:00:39]} 57. b4 {[%emt 0:00:32]} Qd2+ {[%emt 0:00:13]} 58. Ka3 {[%emt 0:00:18]} Qe3+ {[%emt 0:00:32]} 59. Ka4 {[%emt 0:00:37]} Qe8+ {[%emt 0:00:33]} 60. Ka3 {[%emt 0:00:19]} f5 {[%emt 0:00:55]} 61. Qd4+ {[%emt 0:00:40]} Kb7 {[%emt 0:00:14]} 62. Qg7+ {[%emt 0:00:17]} Kb8 {[%emt 0:00:50]} 63. Qd4 {[%emt 0:00:37]} Qe6 {[%emt 0:00:37]} 64. Qf4+ {[%emt 0:00:39]} Kc8 {[%emt 0:00:09]} 65. Qc1+ {[%emt 0:00:08]} Kd8 {[%emt 0:00:10]} 66. Qd1+ {[%emt 0:00:28]} Ke7 {[%emt 0:00:07]} 67. Qd4 {[%emt 0:00:19]} Kf7 {[%emt 0:01:29]} 68. Qxa7+ {[%emt 0:00:31]} Kf6 {[%emt 0:00:14]} 69. Qd4+ {[%emt 0:00:11]} Kf7 {[%emt 0:00:25]} 70. Qa7+ {[%emt 0:00:10]} Kg8 {[%emt 0:00:12]} 71. Qd4 {[%emt 0:00:55]} Qf7 {[%emt 0:00:46]} 72. Qd6 {[%emt 0:00:51]} f4 {[%emt 0:00:39]} 73. Qxa6 {[%emt 0:00:52]} f3 {[%emt 0:00:10]} 74. Qf1 {[%emt 0:00:54]} f2 {[%emt 0:00:23]} 75. b5 {[%emt 0:00:40]} Qf3+ {[%emt 0:00:47]} 76. Ka4 {[%emt 0:02:01]} Qe4+ {[%emt 0:00:15]} 77. Kb3 {[%emt 0:00:16]} Kg7 {[%emt 0:00:41]} 78. Qxf2 {[%emt 0:00:25]} Qd3+ {[%emt 0:00:17]} 79. Kb4 {[%emt 0:00:27]} Qd6+ {[%emt 0:00:07]} 80. Ka5 {[%emt 0:00:28]} Qd5 {[%emt 0:00:19]} 81. Ka6 {[%emt 0:00:33]} Qc4 {[%emt 0:00:20]} 82. Kb6 {[%emt 0:00:36]} Qe6+ {[%emt 0:00:11]} 83. Ka7 {[%emt 0:00:32]} Qd7+ {[%emt 0:00:27]} 84. Ka6 {[%emt 0:00:17]} Qc8+ {[%emt 0:00:21]} 85. Ka5 {[%emt 0:00:45]} Qa8+ {[%emt 0:00:13]} 86. Kb4 {[%emt 0:00:29]} Qe4+ {[%emt 0:00:09]} 87. Kc5 {[%emt 0:00:13]} Qe7+ {[%emt 0:00:31]} 88. Kc6 {[%emt 0:00:29]} Qe6+ {[%emt 0:00:36]} 89. Kc7 {[%emt 0:00:41]} Qe5+ {[%emt 0:00:23]} 90. Kb6 {[%emt 0:00:23]} Qd6+ {[%emt 0:00:14]} 91. Ka7 {[%emt 0:00:24]} Qc7+ {[%emt 0:00:12]} 92. Ka6 {[%emt 0:00:21]} Qc8+ {[%emt 0:00:11]} 93. Ka5 {[%emt 0:00:09]} Qa8+ {[%emt 0:00:26]} 94. Kb4 {[%emt 0:00:20]} Qe4+ {[%emt 0:00:10]} 95. Kc3 {[%emt 0:00:29]} Qh1 {[%emt 0:02:32]} 96. Qd4+ {[%emt 0:00:32]} Kh7 {[%emt 0:00:24]} 97. Qd7+ {[%emt 0:00:38]} Kh6 {[%emt 0:00:25]} 98. Qd2+ {[%emt 0:00:32]} Kh7 {[%emt 0:01:08]} 99. Qd4 {[%emt 0:00:38]} Qc1+ {[%emt 0:00:26]} 100. Kb4 {[%emt 0:00:40]} Qb1+ {[%emt 0:00:22]} 101. Kc5 {[%emt 0:00:00]} Qc2+ {[%emt 0:00:16]} 102. Kb6 {[%emt 0:00:05]} Qc8 {[%emt 0:00:22]} 103. Qd6 {[%emt 0:00:36]} Kh6 {[%emt 0:00:55]} 104. Qf4+ {[%emt 0:00:25]} Kh7 {[%emt 0:00:20]} 105. Qc7+ {[%emt 0:08:09]} 1-0

[Event "Kuwait Championship Stage-I 2024"]
[Site "Qadsiya"]
[Date "2024.01.31"]
[Round "8.6"]
[White "Khalaf, Ali"]
[Black "Al Subaie, Nasser"]
[Result "1/2-1/2"]
[ECO "C27"]
[WhiteElo "1426"]
[BlackElo "1457"]
[Annotator "NA COMBH"]
[PlyCount "28"]
[EventDate "2024.01.22"]
[EventType "swiss"]
[EventCountry "KUW"]
[SourceTitle "playchess.com"]
[Source "ChessBase"]
[SourceQuality "1"]
[TimeControl "5400+30"]

1. e4 {[%emt 0:15:09]} e5 {[%emt 0:00:04]} 2. Bc4 {[%emt 0:00:09]} Nf6 {[%emt 0:00:07]} 3. Nc3 {[%emt 0:01:01]} Bc5 {[%emt 0:00:14]} 4. d3 {[%emt 0:01:01]} c6 {[%emt 0:00:57]} 5. Qf3 {[%emt 0:00:04]} b5 {[%emt 0:07:16]} 6. Bb3 {[%emt 0:00:27]} a5 {[%emt 0:02:48]} 7. a4 b4 {[%emt 0:00:38]} 8. Nd1 {[%emt 0:00:13]} d5 {[%emt 0:00:04]} 9. exd5 {[%emt 0:15:35]} Bg4 {[%emt 0:16:18]} 10. Qg3 {[%emt 0:01:51]} h5 {[%emt 0:00:30]} 11. Qxe5+ {[%emt 0:09:53]} Be7 {[%emt 0:27:41]} 12. d6 {[%emt 0:09:23]} Qxd6 {[%emt 0:00:34]} 13. Qxd6 {[%emt 0:00:19]} Bxd6 {[%emt 0:00:05]} 14. Ne3 {[%emt 0:03:18]} O-O {[%emt 0:05:11]} 1/2-1/2

[Event "Kuwait Championship Stage-I 2024"]
[Site "Qadsiya"]
[Date "2024.01.31"]
[Round "8.7"]
[White "Alasfour, Zaid"]
[Black "Alsayer, Bader"]
[Result "0-1"]
[ECO "B22"]
[WhiteElo "1188"]
[BlackElo "1260"]
[Annotator "NA COMBH"]
[PlyCount "78"]
[EventDate "2024.01.22"]
[EventType "swiss"]
[EventCountry "KUW"]
[SourceTitle "playchess.com"]
[Source "ChessBase"]
[SourceQuality "1"]
[TimeControl "5400+30"]

1. e4 {[%emt 0:00:48]} c5 {[%emt 0:00:04]} 2. c3 {[%emt 0:00:30]} Nc6 {[%emt 0:00:30]} 3. d4 {[%emt 0:00:30]} cxd4 {[%emt 0:00:30]} 4. cxd4 {[%emt 0:00:00]} e6 {[%emt 0:04:38]} 5. Nc3 {[%emt 0:00:00]} g6 {[%emt 0:00:30]} 6. Bc4 {[%emt 0:00:00]} Nge7 {[%emt 0:00:30]} 7. Nf3 {[%emt 0:00:00]} Bg7 {[%emt 0:00:30]} 8. O-O {[%emt 0:00:26]} O-O {[%emt 0:00:30]} 9. Re1 {[%emt 0:00:30]} d5 {[%emt 0:00:30]} 10. exd5 {[%emt 0:00:30]} exd5 {[%emt 0:00:30]} 11. Bb3 {[%emt 0:13:40]} Bg4 {[%emt 0:06:21]} 12. Be3 {[%emt 0:02:32]} Qd7 {[%emt 0:14:22]} 13. Qe2 {[%emt 0:08:23]} Nf5 {[%emt 0:00:49]} 14. Bxd5 {[%emt 0:12:06]} Nfxd4 {[%emt 0:00:59]} 15. Bxd4 {[%emt 0:03:02]} Nxd4 {[%emt 0:01:00]} 16. Qd3 {[%emt 0:10:19]} Nxf3+ {[%emt 0:00:50]} 17. gxf3 {[%emt 0:00:09]} Bf5 {[%emt 0:00:55]} 18. Qc4 {[%emt 0:05:30]} Rac8 {[%emt 0:03:46]} 19. Qb3 {[%emt 0:01:35]} Qd8 {[%emt 0:07:02]} 20. Be4 {[%emt 0:04:11]} Be6 {[%emt 0:01:53]} 21. Qb5 {[%emt 0:02:23]} a6 {[%emt 0:00:40]} 22. Qf1 {[%emt 0:01:08]} Qh4 {[%emt 0:01:41]} 23. Qg2 {[%emt 0:00:39]} Be5 {[%emt 0:03:54]} 24. Bxb7 {[%emt 0:04:22]} Bh3 {[%emt 0:00:27]} 25. Re4 {[%emt 0:02:27]} Qh6 {[%emt 0:00:45]} 26. Bxc8 {[%emt 0:05:52]} Bxg2 {[%emt 0:01:04]} 27. Rxe5 {[%emt 0:01:06]} Bxf3 {[%emt 0:00:49]} 28. Bxa6 {[%emt 0:01:27]} Qf4 {[%emt 0:00:26]} 29. Re2 {[%emt 0:04:19]} Qg4+ {[%emt 0:00:24]} 30. Kf1 {[%emt 0:00:05]} Qg2+ {[%emt 0:00:27]} 31. Ke1 {[%emt 0:00:08]} Qg1+ {[%emt 0:00:17]} 32. Kd2 {[%emt 0:00:08]} Qxa1 {[%emt 0:00:31]} 33. Re3 {[%emt 0:01:01]} Rd8+ {[%emt 0:00:53]} 34. Kc2 {[%emt 0:00:11]} Bd1+ {[%emt 0:00:24]} 35. Nxd1 {[%emt 0:00:23]} Qxd1+ {[%emt 0:00:20]} 36. Kc3 {[%emt 0:00:22]} Qc1+ {[%emt 0:00:26]} 37. Kb3 {[%emt 0:00:17]} Rb8+ {[%emt 0:00:25]} 38. Ka3 {[%emt 0:00:20]} Qc5+ {[%emt 0:00:40]} 39. b4 {[%emt 0:00:23]} Qxb4# {[%emt 0:00:09]} 0-1

[Event "Kuwait Championship Stage-I 2024"]
[Site "Qadsiya"]
[Date "2024.01.31"]
[Round "8.8"]
[White "Alghanim, Faisal"]
[Black "Albaloul, Mohammad"]
[Result "0-1"]
[ECO "B98"]
[WhiteElo "1280"]
[BlackElo "1378"]
[Annotator "NA RC"]
[PlyCount "120"]
[EventDate "2024.01.22"]
[EventType "swiss"]
[EventCountry "KUW"]
[SourceTitle "playchess.com"]
[Source "ChessBase"]
[SourceQuality "1"]
[TimeControl "5400+30"]

1. e4 {[%emt 0:00:01]} c5 {[%emt 0:03:33]} 2. Nf3 {[%emt 0:00:02]} d6 {[%emt 0:00:08]} 3. d4 cxd4 {[%emt 0:00:06]} 4. Nxd4 {[%emt 0:00:09]} Nf6 {[%emt 0:00:10]} 5. Nc3 {[%emt 0:00:04]} a6 {[%emt 0:00:16]} 6. Bg5 {[%emt 0:00:28]} e6 {[%emt 0:00:08]} 7. f4 {[%emt 0:00:50]} Be7 {[%emt 0:00:08]} 8. Qd3 {[%emt 0:02:37]} h6 {[%emt 0:00:10]} 9. Bxf6 Bxf6 {[%emt 0:00:15]} 10. O-O-O {[%emt 0:03:39]} Qc7 {[%emt 0:04:20]} 11. Nde2 {[%emt 0:07:43]} Be7 {[%emt 0:00:18]} 12. g4 {[%emt 0:05:32]} b5 {[%emt 0:00:49]} 13. a3 {[%emt 0:01:50]} Bb7 {[%emt 0:00:23]} 14. Rg1 {[%emt 0:03:44]} Nc6 {[%emt 0:00:31]} 15. Bg2 {[%emt 0:01:59]} b4 {[%emt 0:01:27]} 16. Na2 {[%emt 0:05:41]} bxa3 {[%emt 0:00:23]} 17. Qxa3 {[%emt 0:01:12]} Rc8 {[%emt 0:00:40]} 18. Qd3 {[%emt 0:04:08]} O-O {[%emt 0:01:52]} 19. Bh1 {[%emt 0:02:43]} Rfd8 {[%emt 0:07:43]} 20. Nec3 {[%emt 0:05:13]} Bf6 {[%emt 0:07:21]} 21. g5 {[%emt 0:03:14]} hxg5 {[%emt 0:01:18]} 22. fxg5 {[%emt 0:00:40]} Be5 {[%emt 0:00:43]} 23. h4 {[%emt 0:01:30]} g6 {[%emt 0:03:24]} 24. h5 {[%emt 0:04:27]} Bg7 {[%emt 0:00:55]} 25. h6 {[%emt 0:01:00]} Bh8 {[%emt 0:00:21]} 26. Rgf1 {[%emt 0:04:51]} Ne5 {[%emt 0:00:13]} 27. Qh3 {[%emt 0:01:59]} Kh7 {[%emt 0:00:12]} 28. Rf2 {[%emt 0:04:18]} a5 {[%emt 0:01:07]} 29. Nb5 {[%emt 0:04:31]} Qc5 {[%emt 0:00:58]} 30. Rdf1 {[%emt 0:03:04]} Rf8 {[%emt 0:05:35]} 31. Nbc3 {[%emt 0:08:02]} Ba6 {[%emt 0:01:35]} 32. Bf3 {[%emt 0:13:07]} Bxf1 {[%emt 0:01:56]} 33. Qxf1 {[%emt 0:00:13]} Qe3+ {[%emt 0:02:34]} 34. Kb1 {[%emt 0:01:11]} Qxg5 {[%emt 0:02:02]} 35. Qh1 {[%emt 0:00:52]} Nxf3 {[%emt 0:06:51]} 36. Qxf3 {[%emt 0:02:02]} Be5 {[%emt 0:06:38]} 37. Qe2 {[%emt 0:03:08]} Rb8 {[%emt 0:09:46]} 38. Qf1 {[%emt 0:00:45]} Qe7 {[%emt 0:01:06]} 39. b3 {[%emt 0:01:55]} Rb7 {[%emt 0:08:06]} 40. Qa6 {[%emt 0:00:56]} Ra7 {[%emt 0:03:32]} 41. Qb5 {[%emt 0:00:50]} Qb7 {[%emt 0:00:54]} 42. Qa4 {[%emt 0:00:42]} Bxc3 {[%emt 0:01:33]} 43. Nxc3 {[%emt 0:00:05]} Qb4 {[%emt 0:00:34]} 44. Qxb4 {[%emt 0:00:53]} axb4 {[%emt 0:00:31]} 45. Nb5 {[%emt 0:00:03]} Rd7 {[%emt 0:00:27]} 46. Rh2 {[%emt 0:00:28]} e5 {[%emt 0:01:32]} 47. c3 {[%emt 0:00:17]} bxc3 {[%emt 0:00:21]} 48. Nxc3 {[%emt 0:00:03]} f5 {[%emt 0:00:04]} 49. Kc2 {[%emt 0:00:38]} Rc8 {[%emt 0:00:21]} 50. Kd2 {[%emt 0:00:10]} Rdc7 {[%emt 0:00:15]} 51. Rh3 {[%emt 0:00:32]} f4 {[%emt 0:00:29]} 52. Nd5 {[%emt 0:00:21]} Rc2+ {[%emt 0:00:36]} 53. Kd3 {[%emt 0:00:52]} Rg2 {[%emt 0:00:58]} 54. Nf6+ {[%emt 0:00:27]} Kh8 {[%emt 0:00:25]} 55. h7 {[%emt 0:00:14]} Rg3+ {[%emt 0:00:12]} 56. Rxg3 {[%emt 0:00:28]} fxg3 {[%emt 0:00:11]} 57. Ke2 {[%emt 0:00:50]} g2 {[%emt 0:00:17]} 58. Kf2 {[%emt 0:00:39]} Rf8 {[%emt 0:00:05]} 59. b4 {[%emt 0:00:46]} Rxf6+ {[%emt 0:00:09]} 60. Kxg2 {[%emt 0:00:07]} Rf4 {[%emt 0:00:18]} 0-1

[Event "Kuwait Championship Stage-I 2024"]
[Site "Qadsiya"]
[Date "2024.01.31"]
[Round "8.11"]
[White "Almanaseer, Talal"]
[Black "Almohammad, Hamad"]
[Result "0-1"]
[ECO "D94"]
[WhiteElo "1249"]
[BlackElo "1296"]
[Annotator "NA COMBH"]
[PlyCount "48"]
[EventDate "2024.01.22"]
[EventType "swiss"]
[EventCountry "KUW"]
[SourceTitle "playchess.com"]
[Source "ChessBase"]
[SourceQuality "1"]
[TimeControl "5400+30"]

1. c4 {[%emt 0:00:03]} c6 {[%emt 0:01:37]} 2. d4 {[%emt 0:00:16]} d5 {[%emt 0:00:07]} 3. Nc3 {[%emt 0:01:26]} Nf6 {[%emt 0:00:02]} 4. cxd5 cxd5 {[%emt 0:00:33]} 5. Nf3 {[%emt 0:05:25]} g6 {[%emt 0:00:14]} 6. e3 {[%emt 0:01:13]} Bg7 {[%emt 0:02:53]} 7. Bd3 {[%emt 0:01:35]} O-O {[%emt 0:00:20]} 8. O-O {[%emt 0:01:32]} Bg4 {[%emt 0:00:28]} 9. h3 {[%emt 0:03:13]} Bxf3 10. Qxf3 {[%emt 0:00:33]} Re8 {[%emt 0:04:14]} 11. b3 {[%emt 0:00:57]} Nc6 12. Bb5 {[%emt 0:06:04]} a6 {[%emt 0:02:00]} 13. Bxc6 {[%emt 0:00:58]} bxc6 {[%emt 0:00:04]} 14. Bb2 {[%emt 0:01:08]} Qd7 {[%emt 0:05:22]} 15. Na4 {[%emt 0:01:43]} Qc7 {[%emt 0:02:37]} 16. Rac1 {[%emt 0:01:00]} Ne4 {[%emt 0:00:32]} 17. Rc2 {[%emt 0:03:32]} e5 {[%emt 0:01:59]} 18. dxe5 {[%emt 0:06:47]} Bxe5 {[%emt 0:00:18]} 19. Bxe5 {[%emt 0:08:10]} Rxe5 {[%emt 0:04:01]} 20. Nc5 {[%emt 0:06:46]} Qd6 {[%emt 0:07:27]} 21. Nxe4 {[%emt 0:04:48]} dxe4 {[%emt 0:03:08]} 22. Qd1 {[%emt 0:03:00]} Rd5 {[%emt 0:01:21]} 23. Qc1 {[%emt 0:03:02]} c5 {[%emt 0:00:29]} 24. Qa3 {[%emt 0:02:32]} Rc8 {[%emt 0:04:31]} 0-1

[Event "Kuwait Championship Stage-I 2024"]
[Site "Qadsiya"]
[Date "2024.01.31"]
[Round "8.12"]
[White "Qabazard, Mohamed"]
[Black "Husain, Sulaiman A.M."]
[Result "0-1"]
[ECO "B46"]
[WhiteElo "1533"]
[BlackElo "1636"]
[Annotator "NA COMBH"]
[PlyCount "54"]
[EventDate "2024.01.22"]
[EventType "swiss"]
[EventCountry "KUW"]
[SourceTitle "playchess.com"]
[Source "ChessBase"]
[SourceQuality "1"]
[TimeControl "5400+30"]

1. e4 {[%emt 0:12:47]} c5 {[%emt 0:00:04]} 2. Nf3 {[%emt 0:00:05]} e6 {[%emt 0:00:14]} 3. d4 {[%emt 0:00:07]} cxd4 {[%emt 0:00:04]} 4. Nxd4 {[%emt 0:00:06]} Nc6 {[%emt 0:00:29]} 5. Bc4 {[%emt 0:00:57]} a6 {[%emt 0:00:59]} 6. Nc3 {[%emt 0:00:42]} Qc7 {[%emt 0:00:19]} 7. O-O {[%emt 0:02:02]} Nf6 {[%emt 0:00:10]} 8. a3 {[%emt 0:01:31]} b5 {[%emt 0:03:18]} 9. Ba2 {[%emt 0:00:15]} Nxd4 {[%emt 0:01:48]} 10. Qxd4 {[%emt 0:00:19]} Bc5 {[%emt 0:00:49]} 11. Qd3 {[%emt 0:00:29]} O-O {[%emt 0:02:00]} 12. Kh1 Ng4 {[%emt 0:01:29]} 13. g3 {[%emt 0:00:39]} Nxf2+ {[%emt 0:00:09]} 14. Rxf2 {[%emt 0:00:40]} Bxf2 {[%emt 0:00:04]} 15. Qf3 {[%emt 0:07:01]} Bd4 {[%emt 0:04:00]} 16. Ne2 {[%emt 0:00:39]} Bb6 {[%emt 0:04:54]} 17. c3 {[%emt 0:00:33]} f5 {[%emt 0:01:46]} 18. Qh5 {[%emt 0:03:59]} Bb7 {[%emt 0:01:50]} 19. h4 {[%emt 0:00:35]} Bxe4+ {[%emt 0:00:42]} 20. Kh2 {[%emt 0:00:11]} Qc5 {[%emt 0:03:16]} 21. Nd4 {[%emt 0:00:38]} Bd5 {[%emt 0:08:23]} 22. Bb1 {[%emt 0:02:33]} e5 {[%emt 0:01:28]} 23. Bxf5 {[%emt 0:00:48]} Rxf5 {[%emt 0:02:40]} 24. Qxf5 {[%emt 0:00:38]} exd4 {[%emt 0:00:29]} 25. cxd4 {[%emt 0:03:16]} Qxd4 {[%emt 0:00:54]} 26. Be3 {[%emt 0:02:52]} Qxb2+ {[%emt 0:00:10]} 27. Kh3 {[%emt 0:59:38]} Be6 {[%emt 1:01:32]} 0-1

[Event "Kuwait Championship Stage-I 2024"]
[Site "Qadsiya"]
[Date "2024.02.01"]
[Round "9.1"]
[White "Al-Hajiri, Bader"]
[Black "Al Ibrahim, Abdulrahman"]
[Result "1-0"]
[ECO "D33"]
[WhiteElo "1890"]
[BlackElo "1854"]
[Annotator "NA"]
[PlyCount "67"]
[EventDate "2024.01.22"]
[EventType "swiss"]
[EventCountry "KUW"]
[SourceTitle "playchess.com"]
[Source "ChessBase"]
[SourceQuality "1"]
[TimeControl "5400+30"]

1. d4 {[%emt 0:02:52]} d5 {[%emt 0:00:06]} 2. c4 {[%emt 0:00:32]} e6 {[%emt 0:00:05]} 3. Nf3 {[%emt 0:00:32]} c5 {[%emt 0:00:09]} 4. cxd5 {[%emt 0:00:28]} exd5 {[%emt 0:00:04]} 5. g3 {[%emt 0:00:29]} Nf6 {[%emt 0:00:13]} 6. Bg2 {[%emt 0:00:54]} Nc6 {[%emt 0:00:11]} 7. Nc3 {[%emt 0:00:40]} cxd4 {[%emt 0:01:13]} 8. Nxd4 {[%emt 0:00:21]} Bc5 {[%emt 0:00:04]} 9. Nb3 {[%emt 0:04:52]} Bb6 {[%emt 0:00:13]} 10. O-O {[%emt 0:02:48]} Be6 {[%emt 0:04:33]} 11. Bg5 {[%emt 0:01:55]} O-O {[%emt 0:03:12]} 12. Rb1 {[%emt 0:02:24]} d4 {[%emt 0:07:52]} 13. Ne4 {[%emt 0:03:21]} Bf5 {[%emt 0:01:44]} 14. Rc1 {[%emt 0:00:27]} Bxe4 {[%emt 0:05:05]} 15. Bxe4 {[%emt 0:00:09]} h6 {[%emt 0:00:11]} 16. Bxf6 {[%emt 0:00:05]} Qxf6 {[%emt 0:00:02]} 17. Nc5 {[%emt 0:00:28]} Qe7 {[%emt 0:06:48]} 18. Bxc6 {[%emt 0:01:32]} Bxc5 {[%emt 0:01:10]} 19. Bf3 {[%emt 0:02:16]} Bb6 {[%emt 0:02:50]} 20. Qb3 {[%emt 0:00:55]} Rad8 {[%emt 0:02:21]} 21. Rc2 {[%emt 0:00:39]} Rfe8 {[%emt 0:06:03]} 22. Rfc1 {[%emt 0:02:05]} Qe5 {[%emt 0:12:43]} 23. Bxb7 {[%emt 0:04:09]} d3 {[%emt 0:07:53]} 24. exd3 {[%emt 0:00:19]} h5 {[%emt 0:02:15]} 25. Bc6 {[%emt 0:07:12]} Re6 {[%emt 0:01:46]} 26. Qb5 {[%emt 0:01:10]} Qd4 {[%emt 0:06:47]} 27. Be4 {[%emt 0:12:03]} g6 {[%emt 0:05:36]} 28. Qg5 {[%emt 0:05:16]} Kg7 {[%emt 0:01:28]} 29. Kg2 {[%emt 0:02:32]} Re5 {[%emt 0:07:41]} 30. Qf4 {[%emt 0:01:47]} Ra5 {[%emt 0:00:27]} 31. b3 {[%emt 0:02:17]} f5 {[%emt 0:01:49]} 32. Rc7+ {[%emt 0:02:42]} Bxc7 {[%emt 0:02:14]} 33. Rxc7+ {[%emt 0:02:04]} Rd7 {[%emt 0:05:33]} 34. Bc6 {[%emt 0:00:29]} 1-0

[Event "Kuwait Championship Stage-I 2024"]
[Site "Qadsiya"]
[Date "2024.02.01"]
[Round "9.2"]
[White "Alhejab, Meshal"]
[Black "Alabdaljader, Mohammed"]
[Result "1/2-1/2"]
[ECO "C75"]
[WhiteElo "1787"]
[BlackElo "1353"]
[Annotator "NA"]
[PlyCount "80"]
[EventDate "2024.01.22"]
[EventType "swiss"]
[EventCountry "KUW"]
[SourceTitle "playchess.com"]
[Source "ChessBase"]
[SourceQuality "1"]
[TimeControl "5400+30"]

1. e4 {[%emt 0:04:34]} e5 {[%emt 0:00:27]} 2. Nf3 {[%emt 0:00:23]} Nc6 {[%emt 0:00:15]} 3. Bb5 {[%emt 0:00:15]} a6 {[%emt 0:00:09]} 4. Ba4 {[%emt 0:00:05]} d6 {[%emt 0:00:09]} 5. d4 {[%emt 0:02:26]} Bd7 {[%emt 0:00:07]} 6. O-O {[%emt 0:02:29]} Nge7 {[%emt 0:00:10]} 7. c3 {[%emt 0:02:19]} Ng6 {[%emt 0:00:27]} 8. Be3 {[%emt 0:13:20]} Be7 {[%emt 0:00:43]} 9. Nbd2 {[%emt 0:06:42]} h6 {[%emt 0:00:19]} 10. Re1 {[%emt 0:21:31]} Bg5 {[%emt 0:00:35]} 11. Nf1 {[%emt 0:00:55]} Qf6 {[%emt 0:06:42]} 12. Ng3 {[%emt 0:04:55]} Nf4 {[%emt 0:10:57]} 13. Bxf4 {[%emt 0:07:43]} Bxf4 {[%emt 0:00:11]} 14. Nh5 {[%emt 0:02:44]} Qg6 {[%emt 0:04:58]} 15. Nh4 {[%emt 0:11:26]} Qg5 {[%emt 0:05:33]} 16. Nf5 {[%emt 0:03:50]} g6 {[%emt 0:11:33]} 17. h4 {[%emt 0:01:59]} Qd8 {[%emt 0:00:23]} 18. Nxf4 {[%emt 0:01:28]} exf4 {[%emt 0:04:55]} 19. d5 {[%emt 0:05:33]} Ne5 {[%emt 0:03:29]} 20. Bxd7+ {[%emt 0:00:33]} Kxd7 {[%emt 0:03:17]} 21. Nd4 {[%emt 0:00:26]} Qxh4 {[%emt 0:00:18]} 22. Nf3 {[%emt 0:01:06]} Qe7 {[%emt 0:02:02]} 23. Nxe5+ {[%emt 0:01:06]} Qxe5 {[%emt 0:00:35]} 24. Qg4+ {[%emt 0:01:27]} Ke8 {[%emt 0:01:49]} 25. g3 {[%emt 0:00:29]} g5 {[%emt 0:02:05]} 26. gxf4 {[%emt 0:00:42]} gxf4 {[%emt 0:00:51]} 27. f3 {[%emt 0:00:35]} Ke7 {[%emt 0:01:57]} 28. Kf2 {[%emt 0:00:29]} Rhg8 {[%emt 0:01:05]} 29. Qh4+ {[%emt 0:00:10]} Qg5 {[%emt 0:00:27]} 30. Rh1 {[%emt 0:00:13]} Qxh4+ {[%emt 0:08:59]} 31. Rxh4 {[%emt 0:00:04]} Rg6 {[%emt 0:00:28]} 32. Rah1 {[%emt 0:00:06]} Rag8 {[%emt 0:00:53]} 33. R1h2 {[%emt 0:00:08]} Rg1 {[%emt 0:03:20]} 34. Rxf4 {[%emt 0:00:19]} Ra1 {[%emt 0:01:31]} 35. a3 {[%emt 0:00:13]} Rgg1 {[%emt 0:04:41]} 36. Rxh6 {[%emt 0:02:59]} Rgb1 {[%emt 0:07:55]} 37. Rh7 {[%emt 0:00:18]} Rxb2+ {[%emt 0:00:14]} 38. Ke3 {[%emt 0:00:07]} Re1+ {[%emt 0:00:18]} 39. Kd3 {[%emt 0:02:00]} Rd1+ {[%emt 0:00:28]} 40. Ke3 {[%emt 0:00:11]} Re1+ {[%emt 0:00:15]} 1/2-1/2